bitfinex-derivatives/quotes_SOLF0:USTF0_20240815
["timestamp","ask_amount","ask_price","bid_price","bid_amount"]
[1723722083730,0.04614862,143.42,143.4,19.18554211]
[1723722083932,0.04614862,143.42,143.41,19.18554211]
[1723722084333,0.04614862,143.42,143.39,3.53712651]
[1723722084534,0.04614862,143.42,143.4,19.1886675]
[1723722084730,1.28394862,143.42,143.39,0.05082651]
[1723722084934,4.76984862,143.42,143.39,0.05082651]
[1723722085139,1.28394862,143.42,143.39,0.05082651]
[1723722085342,4.76984862,143.42,143.39,19.24546363]
[1723722085542,1.28394862,143.42,143.39,0.05082651]
[1723722085743,1.2362,143.41,143.35,36.35697654]
[1723722085934,33.57,143.4,143.36,19.19668227]
[1723722086139,37.01813901,143.4,143.3,33.57]
[1723722086340,3.4871,143.37,143.31,17.17308215]
[1723722086741,1.3474,143.36,143.31,17.17308215]
[1723722087136,0.050031,143.35,143.33,3.54150757]
[1723722087940,0.050031,143.35,143.34,3.4877]
[1723722089042,0.050031,143.35,143.33,0.05370757]
[1723722089746,0.050031,143.35,143.33,17.22207716]
[1723722090045,0.050031,143.35,143.34,3.4877]
[1723722092745,0.050031,143.35,143.33,3.54150757]
[1723722092940,0.050031,143.35,143.33,0.05370757]
[1723722093347,0.050031,143.35,143.34,3.4877]
[1723722093551,0.050031,143.35,143.33,0.05370757]
[1723722094949,0.050031,143.35,143.34,3.4877]
[1723722096146,0.050031,143.35,143.33,3.54150757]
[1723722096547,0.050031,143.35,143.33,0.05370757]
[1723722097251,0.050031,143.35,143.33,3.54150757]
[1723722097954,0.050031,143.35,143.34,3.4877]
[1723722099650,0.050031,143.35,143.34,37.0577]
[1723722100050,0.050031,143.35,143.34,54.21935062]
[1723722100251,0.050031,143.35,143.34,57.74518897]
[1723722101565,0.050031,143.35,143.34,57.74503877]
[1723722102654,0.050031,143.35,143.34,40.58353835]
[1723722102855,0.050031,143.35,143.34,57.74474517]
[1723722103252,0.050031,143.35,143.34,54.21890682]
[1723722103456,0.050031,143.35,143.34,3.4877]
[1723722103753,0.050031,143.35,143.33,0.05370757]
[1723722104157,0.050031,143.35,143.33,3.54150757]
[1723722104951,0.050031,143.35,143.34,3.4877]
[1723722105146,0.050031,143.35,143.33,0.05370757]
[1723722105653,0.050031,143.35,143.34,3.4877]
[1723722107157,0.050031,143.35,143.34,22.49304806]
[1723722108784,0.050031,143.35,143.34,3.4877]
[1723722109071,0.050031,143.35,143.34,22.49848582]
[1723722109461,0.050031,143.35,143.34,3.4877]
[1723722109654,0.050031,143.35,143.34,22.50004931]
[1723722109863,0.050031,143.35,143.34,3.4877]
[1723722111164,0.050031,143.35,143.33,3.54140757]
[1723722111364,0.050031,143.35,143.33,0.05370757]
[1723722111764,0.050031,143.35,143.34,3.4877]
[1723722113159,0.050031,143.35,143.34,22.50037391]
[1723722114064,0.050031,143.35,143.34,22.50034646]
[1723722116459,0.050031,143.35,143.34,3.4877]
[1723722116665,0.050031,143.35,143.34,22.50115795]
[1723722116864,0.050031,143.35,143.34,3.4877]
[1723722117064,0.050031,143.35,143.34,22.50260925]
[1723722117260,0.050031,143.35,143.34,3.4877]
[1723722120172,0.050031,143.35,143.34,22.50099291]
[1723722120770,0.050031,143.35,143.34,3.4877]
[1723722121572,0.050031,143.35,143.34,22.5011248]
[1723722121770,0.050031,143.35,143.34,3.4877]
[1723722123568,0.050031,143.35,143.34,22.501325]
[1723722124162,0.050031,143.35,143.34,3.4877]
[1723722125762,0.050031,143.35,143.33,0.05370757]
[1723722125961,0.050031,143.35,143.27,6.9785]
[1723722125962,14.709731,143.35,143.28,36.1933254]
[1723722126165,13.39,143.33,143.29,19.01582123]
[1723722126373,3.4883,143.32,143.28,3.489]
[1723722126564,13.39,143.33,143.29,19.03076684]
[1723722126784,1.2305,143.32,143.28,3.489]
[1723722126965,18.1088,143.32,143.28,3.489]
[1723722127169,0.05343453,143.3,143.28,3.54167949]
[1723722127875,0.05343453,143.3,143.28,0.05267949]
[1723722128471,0.05343453,143.3,143.22,4.42]
[1723722128472,0.05343453,143.3,143.22,37.89]
[1723722128665,3.4892,143.28,143.24,3.49]
[1723722129172,3.4892,143.28,143.22,33.47]
[1723722129173,34.7961,143.29,143.22,33.47]
[1723722129476,4.42,143.28,143.2,33.47]
[1723722129670,3.4897,143.26,143.22,3.4905]
[1723722130073,4.42,143.28,143.2,33.47]
[1723722130374,3.535945,143.25,143.24,0.04550262]
[1723722130674,0.046045,143.25,143.24,0.04550262]
[1723722132775,0.046045,143.25,143.24,3.53560262]
[1723722133479,0.046045,143.25,143.2,33.47]
[1723722133771,0.046045,143.25,143.19,4.42]
[1723722133970,0.046045,143.25,143.13,0.1472]
[1723722133971,3.4907,143.22,143.16,39.207]
[1723722134171,33.516045,143.25,143.16,4.42]
[1723722134378,4.42,143.24,143.15,33.47]
[1723722134571,33.47,143.23,143.15,33.47]
[1723722134971,33.47,143.23,143.18,0.0508761]
[1723722134972,0.04786452,143.21,143.18,0.0508761]
[1723722135180,0.04786452,143.21,143.19,3.4912]
[1723722135874,0.04786452,143.21,143.18,3.5422761]
[1723722136076,0.04786452,143.21,143.18,0.0508761]
[1723722136579,0.04786452,143.21,143.03,31.47853331]
[1723722136580,33.47,143.19,143.1,4.42]
[1723722137375,3.4918,143.18,143.14,3.4924]
[1723722137579,33.47,143.19,143.14,3.4924]
[1723722137779,33.47,143.19,143.1,4.42]
[1723722138276,33.47,143.17,143.1,4.42]
[1723722138476,33.47,143.17,143.09,33.47]
[1723722138477,33.51886646,143.17,143.15,0.03180485]
[1723722138682,33.51886646,143.17,143.13,3.4927]
[1723722138976,3.4926,143.14,143.06,1.3649]
[1723722139278,3.4926,143.14,143.06,34.8349]
[1723722139475,36.9624,143.15,143.11,3.4931]
[1723722139978,0.05150838,143.14,143.09,0.03180485]
[1723722140476,0.05150838,143.14,143.1,3.4934]
[1723722140677,0.05150838,143.14,143.09,0.03180485]
[1723722141273,0.05150838,143.14,143.13,3.4928]
[1723722142780,0.05150838,143.14,143.12,0.03180485]
[1723722142781,0.05150838,143.14,143.12,3.52480485]
[1723722143277,0.05150838,143.14,143.12,0.03180485]
[1723722143479,0.05150838,143.14,143.13,3.4928]
[1723722144677,0.05150838,143.14,143.13,36.9628]
[1723722144880,1.2722,143.21,143.2,3.4911]
[1723722145084,1.2722,143.21,143.15,36.96594824]
[1723722145277,1.2722,143.21,143.15,33.47]
[1723722145578,1.2722,143.21,143.19,3.4911]
[1723722145781,1.2722,143.21,143.15,33.47]
[1723722146081,1.2722,143.21,143.19,0.04474919]
[1723722146082,1.31936275,143.21,143.19,0.04474919]
[1723722146484,1.31936275,143.21,143.19,3.53604919]
[1723722147082,1.31936275,143.21,143.2,3.4911]
[1723722147387,1.31936275,143.21,143.19,0.04474919]
[1723722148687,1.31936275,143.21,143.2,3.4911]
[1723722149586,1.31936275,143.21,143.19,0.04474919]
[1723722149886,33.47,143.2,143.16,3.4918]
[1723722150076,37.85,143.2,143.16,3.4918]
[1723722150280,3.4914,143.19,143.16,3.4918]
[1723722150886,3.54038087,143.19,143.16,3.53036405]
[1723722151682,3.4916,143.18,143.16,3.53036405]
[1723722152079,36.9618,143.17,143.16,0.03856405]
[1723722152291,33.47,143.17,143.08,5.6577]
[1723722152488,33.47,143.15,143.08,5.6577]
[1723722152688,36.9624,143.15,143.12,3.4929]
[1723722153186,38.2582,143.15,143.12,3.4929]
[1723722153492,38.30945569,143.15,143.12,3.4929]
[1723722154192,3.4926,143.14,143.12,3.4929]
[1723722154389,34.81705569,143.15,143.08,5.6577]
[1723722154695,3.4926,143.14,143.08,5.6577]
[1723722155091,34.81705569,143.15,143.08,5.6577]
[1723722155496,1.34705569,143.15,143.08,5.6577]
[1723722155992,4.83945569,143.15,143.12,3.493]
[1723722156188,4.83945569,143.15,143.08,5.6577]
[1723722156189,1.34705569,143.15,143.08,5.6577]
[1723722156389,3.4926,143.14,143.11,3.4932]
[1723722156582,1.34705569,143.15,143.08,5.6577]
[1723722156583,34.81705569,143.15,143.08,5.6577]
[1723722156995,3.4927,143.14,143.1,3.4934]
[1723722157788,3.4927,143.14,143.11,3.4933]
[1723722158594,3.4927,143.14,143.08,5.6577]
[1723722159098,3.4927,143.14,143.1,3.4934]
[1723722159790,3.4928,143.13,143.09,3.4936]
[1723722159993,3.4928,143.13,143.08,1.2777]
[1723722160797,0.05245476,143.12,143.08,1.2777]
[1723722161602,0.05245476,143.12,143.11,3.4933]
[1723722165594,0.05245476,143.12,143.1,3.4934]
[1723722169299,3.54545476,143.12,143.09,3.4936]
[1723722169504,3.54545476,143.12,143.05,4.4]
[1723722170707,0.05245476,143.12,143.05,37.87]
[1723722170911,0.05245476,143.12,143.11,3.4933]
[1723722171102,0.05245476,143.12,143.05,37.87]
[1723722171498,0.05245476,143.12,143.1,3.4933]
[1723722171698,0.05245476,143.12,143.05,37.87]
[1723722172105,0.05245476,143.12,143.1,3.4933]
[1723722172299,0.05245476,143.12,143.05,37.87]
[1723722172709,0.05245476,143.12,143.11,3.4933]
[1723722188922,0.05245476,143.12,143.07,1.3401]
[1723722189423,0.05245476,143.12,143.1,3.4934]
[1723722190220,0.05245476,143.12,143.09,3.4936]
[1723722190414,33.60245476,143.12,143.09,3.4936]
[1723722190821,37.09555476,143.12,143.09,3.4936]
[1723722191325,33.60245476,143.12,143.09,3.4936]
[1723722192026,37.09545476,143.12,143.09,3.4936]
[1723722193127,37.09545476,143.12,143.08,3.4939]
[1723722194231,37.09545476,143.12,143.09,3.4937]
[1723722196320,37.09545476,143.12,143.05,11.3693]
[1723722196520,37.09545476,143.12,143.06,19.0870455]
[1723722197423,37.09545476,143.12,143.08,3.4938]
[1723722197621,41.47545476,143.12,143.05,11.3693]
[1723722197821,41.47545476,143.12,143.06,19.08426792]
[1723722198332,33.60245476,143.12,143.09,3.4936]
[1723722199328,37.09555476,143.12,143.09,3.4936]
[1723722199931,13.41,143.11,143.09,3.4936]
[1723722205233,13.41,143.11,143.1,19.08671915]
[1723722205933,13.41,143.11,143.09,19.08671915]
[1723722206132,13.41,143.11,143.1,19.08671915]
[1723722206343,13.41,143.11,143.06,19.08671915]
[1723722206530,13.41,143.11,143.07,36.31885848]
[1723722206836,13.41,143.11,143.08,36.31885848]
[1723722207036,13.41,143.11,143.09,19.08683944]
[1723722207238,13.41,143.11,143.1,19.08683944]
[1723722207940,13.41,143.11,143.06,19.08683944]
[1723722208137,13.41,143.11,143.05,11.3693]
[1723722208138,13.41,143.09,143.07,36.31895623]
[1723722208436,13.41,143.08,143.02,16.23831529]
[1723722208637,16.904,143.08,143.04,3.4949]
[1723722208939,13.45485086,143.06,143.05,19.09805681]
[1723722209838,13.45485086,143.06,142.99,4.38]
[1723722210050,13.41,143.04,142.99,4.38]
[1723722210328,13.41,143.04,143.0,36.3606243]
[1723722210532,0.04415711,143.03,143.01,36.3606243]
[1723722210739,0.04415711,143.03,143.02,36.3606243]
[1723722211232,0.04415711,143.03,143.02,19.10991624]
[1723722211943,0.04415711,143.03,143.02,22.60541624]
[1723722212234,0.04415711,143.03,143.02,53.26443008]
[1723722212428,13.41,143.09,143.06,3.4944]
[1723722213434,16.9039,143.09,143.05,3.4946]
[1723722213635,16.95494136,143.09,143.06,0.04415711]
[1723722213832,13.46104136,143.09,143.06,0.04415711]
[1723722214041,3.4941,143.08,143.06,0.04415711]
[1723722214235,13.41,143.07,143.06,0.04415711]
[1723722215163,13.41,143.07,142.98,5.6874]
[1723722215445,13.41,143.06,142.99,36.34906396]
[1723722215639,13.41,143.06,143.0,36.34906396]
[1723722215835,13.41,143.06,143.03,3.4952]
[1723722216038,13.41,143.06,143.04,19.10348834]
[1723722216239,13.46303101,143.06,143.05,19.10348834]
[1723722216442,13.46303101,143.06,143.04,19.10348834]
[1723722216742,16.95753101,143.06,143.05,19.10348834]
[1723722216944,16.95753101,143.06,143.04,19.10348834]
[1723722217137,16.95753101,143.06,143.05,19.10348834]
[1723722217538,13.46303101,143.06,143.04,19.09750091]
[1723722217840,13.46303101,143.06,143.05,19.09750091]
[1723722219034,0.05303101,143.06,143.05,19.09750091]
[1723722219235,4.38,143.13,143.05,19.09750091]
[1723722219436,19.1117,143.14,143.06,49.73504121]
[1723722219641,14.7317,143.14,143.08,13.41]
[1723722219847,14.7317,143.14,143.09,19.09750091]
[1723722220042,14.7317,143.14,143.1,19.09750091]
[1723722220345,14.7317,143.14,143.11,19.07007716]
[1723722220646,14.7317,143.14,143.12,3.4929]
[1723722220839,0.04924859,143.13,143.12,3.4929]
[1723722221947,0.04924859,143.13,143.12,22.56098368]
[1723722223438,0.04924859,143.13,143.12,53.17933495]
[1723722223644,13.41,143.19,143.15,3.4921]
[1723722223840,38.2977,143.2,143.15,3.4921]
[1723722224047,38.2977,143.2,143.11,33.53]
[1723722224240,34.8065,143.2,143.12,36.2552679]
[1723722224442,34.8065,143.2,143.13,36.2552679]
[1723722224741,34.8065,143.2,143.14,39.79337997]
[1723722224942,34.8065,143.2,143.15,36.2959552]
[1723722224943,0.04468643,143.18,143.15,36.2959552]
[1723722225247,0.04468643,143.18,143.16,19.0467816]
[1723722225439,0.04468643,143.18,143.17,19.0467816]
[1723722225641,0.04468643,143.18,143.16,19.0467816]
[1723722225842,0.04468643,143.18,143.17,19.0467816]
[1723722226144,0.04468643,143.18,143.15,0.05049481]
[1723722226344,0.04468643,143.18,143.16,22.53878552]
[1723722226544,0.04468643,143.18,143.15,0.05049481]
[1723722226951,0.04468643,143.18,143.15,3.54269481]
[1723722227845,33.57468643,143.18,143.15,0.05049481]
[1723722228452,3.4919,143.17,143.15,0.05049481]
[1723722229453,37.06638643,143.18,143.15,0.05049481]
[1723722229656,33.57468643,143.18,143.15,0.05049481]
[1723722230055,3.4918,143.17,143.15,0.05049481]
[1723722231057,37.06638643,143.18,143.15,0.05049481]
[1723722231964,3.4919,143.17,143.15,0.05049481]
[1723722232258,33.57468643,143.18,143.15,0.05049481]
[1723722232259,33.53,143.16,143.15,0.05049481]
[1723722233448,33.57468643,143.18,143.15,0.05049481]
[1723722234459,37.06628643,143.18,143.15,3.54269481]
[1723722235460,37.06628643,143.18,143.16,3.492]
[1723722236353,33.57468643,143.18,143.15,0.05049481]
[1723722237363,37.06638643,143.18,143.16,3.4919]
[1723722239465,3.4918,143.17,143.15,3.54269481]
[1723722242665,3.4918,143.17,143.15,0.05049481]
[1723722243264,3.4918,143.17,143.15,3.54279481]
[1723722243867,13.42,143.16,143.15,3.54279481]
[1723722246267,13.42,143.16,143.15,0.05049481]
[1723722248169,13.42,143.16,143.15,3.54279481]
[1723722249671,13.42,143.16,143.15,0.05049481]
[1723722250565,13.42,143.16,143.07,14.0447]
[1723722250772,13.42,143.11,143.08,36.29576168]
[1723722250963,13.42,143.11,143.09,3.4937]
[1723722251471,13.42,143.11,143.05,3.44300576]
[1723722251677,13.42,143.11,143.08,3.4939]
[1723722251870,16.95802282,143.11,143.09,0.05107837]
[1723722253569,3.4935,143.1,143.09,0.05107837]
[1723722256271,3.4942,143.08,143.05,3.4946]
[1723722256468,13.42,143.07,143.02,4.38]
[1723722256663,13.42,143.07,143.03,19.09413102]
[1723722256872,13.42,143.07,143.05,3.4946]
[1723722257170,3.4939,143.09,143.02,17.8]
[1723722257368,13.42,143.09,143.06,3.4944]
[1723722257569,0.05113806,143.07,143.06,3.4944]
[1723722258976,5.6891,143.14,143.11,3.493]
[1723722259274,13.42,143.15,143.09,16.86528026]
[1723722259475,13.42,143.15,143.12,3.4929]
[1723722259873,13.42,143.15,143.09,16.94634568]
[1723722260068,13.42,143.15,143.1,19.07317153]
[1723722260281,13.46563087,143.15,143.12,3.54474448]
[1723722260674,13.46563087,143.15,143.12,0.05184448]
[1723722260875,13.46563087,143.15,143.13,3.4926]
[1723722261080,13.46563087,143.15,143.12,0.05184448]
[1723722261582,13.46563087,143.15,143.13,3.4926]
[1723722261782,13.46563087,143.15,143.12,0.05184448]
[1723722262075,13.46563087,143.15,143.13,3.4927]
[1723722262277,13.46563087,143.15,143.12,0.05184448]
[1723722262471,13.42,143.14,143.12,0.05184448]
[1723722263078,16.9127,143.14,143.12,0.05184448]
[1723722263279,13.42,143.14,143.12,0.05184448]
[1723722264073,16.9126,143.14,143.12,0.05184448]
[1723722266481,13.42,143.14,143.12,0.05184448]
[1723722266980,13.42,143.14,143.12,3.54474448]
[1723722267379,13.42,143.14,143.13,3.4928]
[1723722267880,13.46563087,143.15,143.13,3.4928]
[1723722268679,16.95793087,143.15,143.13,3.4928]
[1723722269185,16.9125,143.14,143.12,3.54474448]
[1723722269780,13.42,143.14,143.13,3.4928]
[1723722270283,16.9125,143.14,143.13,3.4928]
[1723722273087,13.42,143.14,143.13,3.4928]
[1723722274689,16.9125,143.14,143.13,3.4928]
[1723722275185,13.42,143.14,143.13,3.4928]
[1723722276582,16.9125,143.14,143.13,3.4928]
[1723722277885,0.04563087,143.15,143.14,3.4925]
[1723722279285,0.04563087,143.15,143.14,10.4776]
[1723722279592,0.04563087,143.15,143.14,29.53395178]
[1723722279790,0.04563087,143.15,143.14,3.4925]
[1723722280291,0.04563087,143.15,143.14,22.54913978]
[1723722282500,0.04563087,143.15,143.14,3.4925]
[1723722282998,0.04563087,143.15,143.14,22.54393621]
[1723722283686,67.14563087,143.15,142.96,10.4903]
[1723722283892,13.42,143.1,143.04,18.48248998]
[1723722284189,13.42,143.1,143.08,3.4938]
[1723722284389,13.42,143.1,143.04,4.77040532]
[1723722284584,13.42,143.1,143.05,17.23225232]
[1723722284890,0.04427273,143.09,143.08,3.4938]
[1723722290092,33.52,143.15,143.08,20.72679364]
[1723722290288,33.52,143.15,143.11,3.493]
[1723722290487,37.0124,143.15,143.11,3.493]
[1723722291090,3.4926,143.14,143.11,3.493]
[1723722291394,3.54381805,143.14,143.12,0.04427273]
[1723722293596,3.54381805,143.14,143.12,3.53727273]
[1723722295094,3.54381805,143.14,143.13,3.4928]
[1723722295297,0.05121805,143.14,143.13,3.4928]
[1723722298503,3.54371805,143.14,143.13,3.4928]
[1723722298697,0.05121805,143.14,143.12,3.53717273]
[1723722299099,0.05121805,143.14,143.12,0.04427273]
[1723722299497,0.05121805,143.14,143.13,3.4928]
[1723722300803,3.54371805,143.14,143.13,3.4928]
[1723722301104,3.54371805,143.14,143.12,3.53717273]
[1723722301301,3.54371805,143.14,143.12,0.04427273]
[1723722301808,3.54371805,143.14,143.12,3.53717273]
[1723722303005,0.05121805,143.14,143.12,3.53717273]
[1723722303403,0.05121805,143.14,143.13,3.4928]
[1723722305907,13.47121805,143.14,143.13,3.4928]
[1723722309304,16.96371805,143.14,143.12,3.53717273]
[1723722309507,13.42,143.13,143.12,3.53717273]
[1723722311301,13.42,143.13,143.12,0.04427273]
[1723722312306,16.9128,143.13,143.12,0.04427273]
[1723722312505,67.1,143.13,143.06,17.24182157]
[1723722312803,67.1,143.13,143.08,3.494]
[1723722312804,13.42,143.09,143.08,3.494]
[1723722313009,13.42,143.09,143.08,20.73582157]
[1723722313704,13.42,143.09,143.08,3.494]
[1723722316417,0.05287502,143.1,143.08,3.494]
[1723722316418,0.05287502,143.1,143.09,3.4938]
[1723722316811,1.2777,143.18,143.15,3.4922]
[1723722317014,1.2777,143.18,143.12,13.42]
[1723722317222,1.2777,143.18,143.13,17.23239705]
[1723722317522,1.2777,143.18,143.15,3.4922]
[1723722317927,1.32435695,143.18,143.15,3.54312279]
[1723722318123,0.04665695,143.18,143.15,3.54312279]
[1723722318427,0.04665695,143.18,143.16,3.492]
[1723722318721,0.04665695,143.18,143.15,0.05092279]
[1723722318925,0.04665695,143.18,143.16,3.4918]
[1723722319315,0.04665695,143.18,143.15,0.05092279]
[1723722319510,0.04665695,143.18,143.17,3.4918]
[1723722325214,37.9,143.24,143.2,3.4909]
[1723722325415,4.38,143.24,143.16,33.52]
[1723722325621,94.98212485,143.26,143.17,17.21462216]
[1723722326122,60.11662485,143.26,143.2,33.52]
[1723722326323,4.90135946,143.3,143.22,33.52]
[1723722326518,33.52,143.31,143.23,3.42877719]
[1723722326731,0.05250697,143.24,143.23,3.42877719]
[1723722326920,33.52,143.31,143.23,3.42877719]
[1723722327122,37.0084,143.31,143.24,4.36]
[1723722327323,37.0084,143.31,143.27,3.4893]
[1723722327829,33.52,143.31,143.24,4.36]
[1723722328127,33.52,143.31,143.28,3.489]
[1723722328628,0.04696276,143.3,143.28,3.5394961]
[1723722329031,0.04696276,143.3,143.28,0.0504961]
[1723722329323,0.04696276,143.3,143.29,3.4889]
[1723722329831,0.04696276,143.3,143.28,0.0504961]
[1723722330327,0.04696276,143.3,143.28,3.5395961]
[1723722333727,3.53576276,143.3,143.28,0.0504961]
[1723722333925,0.04696276,143.3,143.28,0.0504961]
[1723722334828,33.52,143.29,143.23,1.346]
[1723722335130,33.52,143.27,143.21,5.6625]
[1723722335425,37.0095,143.27,143.25,3.4899]
[1723722335828,33.52,143.27,143.25,3.4899]
[1723722336128,33.56763487,143.27,143.25,3.53895391]
[1723722336332,37.05703487,143.27,143.25,3.53895391]
[1723722336932,3.4896,143.26,143.25,0.04905391]
[1723722337431,37.05723487,143.27,143.25,0.04905391]
[1723722337823,37.05723487,143.27,143.25,3.53895391]
[1723722338125,37.05723487,143.27,143.25,0.04905391]
[1723722338328,3.4896,143.26,143.25,0.04905391]
[1723722340836,7.00213009,143.26,143.25,0.04905391]
[1723722341028,3.4896,143.26,143.25,0.04905391]
[1723722341629,7.02307332,143.26,143.25,0.04905391]
[1723722342928,3.4896,143.26,143.25,0.04905391]
[1723722344639,0.04763487,143.27,143.25,0.04905391]
[1723722345737,0.04763487,143.27,143.26,3.4896]
[1723722346136,0.04763487,143.27,143.25,0.04905391]
[1723722346331,3.53703487,143.27,143.26,3.4896]
[1723722346531,0.04763487,143.27,143.26,3.4896]
[1723722352436,4.36,143.34,143.26,13.39]
[1723722352639,13.39,143.33,143.26,13.39]
[1723722352944,13.39,143.34,143.32,3.488]
[1723722353742,16.92329106,143.34,143.32,3.54060626]
[1723722353937,3.53329106,143.34,143.32,3.54060626]
[1723722354337,3.4879,143.33,143.32,3.54060626]
[1723722354536,33.55559106,143.34,143.32,3.54060626]
[1723722354738,37.04339106,143.34,143.32,3.54060626]
[1723722355143,33.55559106,143.34,143.32,0.05260626]
[1723722355342,3.4879,143.33,143.32,0.05260626]
[1723722355741,3.4884,143.31,143.24,1.3322]
[1723722355944,3.45432054,143.36,143.23,1.2474]
[1723722355945,33.51,143.32,143.23,1.2474]
[1723722356136,33.51,143.32,143.22,37.87]
[1723722356137,33.51,143.26,143.24,3.4899]
[1723722356339,33.51,143.26,143.18,6.9831]
[1723722356340,33.51,143.26,143.19,1.242]
[1723722356745,36.9998,143.26,143.19,1.242]
[1723722356944,0.04804238,143.24,143.21,0.04746073]
[1723722357134,33.55804238,143.24,143.21,0.04746073]
[1723722357338,3.4904,143.23,143.21,0.04746073]
[1723722358242,41.40824238,143.24,143.21,0.04746073]
[1723722358843,3.4904,143.23,143.21,0.04746073]
[1723722360235,41.40824238,143.24,143.21,0.04746073]
[1723722360747,3.4904,143.23,143.21,0.04746073]
[1723722361343,41.40824238,143.24,143.21,3.53826073]
[1723722361751,7.89824238,143.24,143.21,3.53826073]
[1723722362049,3.53824238,143.24,143.21,3.53826073]
[1723722362847,3.4905,143.23,143.21,0.04746073]
[1723722363056,33.55804238,143.24,143.21,0.04746073]
[1723722363244,3.4904,143.23,143.21,3.53816073]
[1723722364042,37.04834238,143.24,143.21,3.53816073]
[1723722364348,33.55804238,143.24,143.21,3.53816073]
[1723722365049,3.4904,143.23,143.21,3.53816073]
[1723722365354,3.4904,143.23,143.21,0.04746073]
[1723722365546,3.4906,143.22,143.21,0.04746073]
[1723722372450,3.4916,143.18,143.15,1.2887]
[1723722372852,33.51,143.19,143.15,1.2887]
[1723722373058,33.51,143.19,143.15,4.7808]
[1723722373253,33.51,143.19,143.15,3.4921]
[1723722373653,33.51,143.17,143.16,0.04911072]
[1723722373854,33.51,143.17,143.08,40.4979]
[1723722373855,33.51,143.17,143.03,41.8923735]
[1723722374052,33.51,143.15,143.11,3.4932]
[1723722374353,3.493,143.12,143.11,3.4932]
[1723722374651,36.99372758,143.15,143.11,3.4932]
[1723722374957,3.4929,143.13,143.11,3.4932]
[1723722375157,0.04691185,143.14,143.1,3.4934]
[1723722375545,3.493,143.13,143.07,1.3051]
[1723722375751,0.04691185,143.14,143.1,3.4934]
[1723722376153,0.04691185,143.14,143.07,1.3051]
[1723722376154,3.4931,143.12,143.07,1.3051]
[1723722376452,7.8282066,143.16,143.09,3.4936]
[1723722376453,33.51,143.11,143.09,3.4936]
[1723722376651,37.0534981,143.11,143.09,3.4936]
[1723722376956,33.5600981,143.11,143.09,3.4935]
[1723722377258,0.0500981,143.11,143.07,1.3051]
[1723722378153,0.0500981,143.11,143.09,3.4937]
[1723722382052,0.0500981,143.11,143.1,3.4935]
[1723722384357,1.3095,143.17,143.08,6.9881]
[1723722384661,37.87,143.19,143.09,33.51]
[1723722384959,4.36,143.2,143.12,6.986]
[1723722385159,4.36,143.2,143.13,4.74232284]
[1723722385463,7.8511,143.2,143.17,3.4917]
[1723722385659,0.04668616,143.18,143.17,3.4917]
[1723722385855,0.04668616,143.18,143.16,3.4919]
[1723722386061,0.04668616,143.18,143.15,0.04916931]
[1723722386662,3.53838616,143.18,143.15,3.54136931]
[1723722386858,33.51,143.17,143.15,0.04916931]
[1723722387764,3.4921,143.16,143.15,0.04916931]
[1723722388062,0.04668616,143.18,143.15,0.04916931]
[1723722388260,0.04668616,143.18,143.15,3.54146931]
[1723722388861,0.04668616,143.18,143.16,3.492]
[1723722389058,0.04668616,143.18,143.15,0.04916931]
[1723722389361,0.04668616,143.18,143.17,3.4918]
[1723722391263,4.36,143.2,143.19,3.4913]
[1723722391461,2.3094,143.2,143.19,3.4913]
[1723722391662,37.0001,143.25,143.16,1.2486]
[1723722391862,33.51,143.25,143.16,1.2486]
[1723722392259,37.0,143.25,143.23,3.4904]
[1723722392567,37.0,143.25,143.16,1.2486]
[1723722392568,33.51,143.25,143.16,1.2486]
[1723722393263,0.04659993,143.22,143.19,0.0510601]
[1723722393455,0.04659993,143.22,143.21,3.4908]
[1723722393970,37.87,143.27,143.19,3.48684692]
[1723722394163,33.51,143.29,143.2,1.3056]
[1723722394464,36.9991,143.29,143.25,3.4897]
[1723722394657,33.51,143.29,143.2,34.8156]
[1723722395356,0.04932924,143.26,143.23,0.05233575]